[Event "*** Titled Tuesday 3|2 Blitz"]
[Site "Chess.com"]
[Date "2016.09.06"]
[Round "7"]
[White "TrickyTrapChess"]
[Black "MattyDPerrine"]
[Result "0-1"]
[WhiteElo "2114"]
[BlackElo "2226"]
[TimeControl "180+2"]
[EndTime "18:23:17 PDT"]
[Termination "MattyDPerrine won by checkmate"]

1. d4 {[%clk 0:02:45.5]} 1... Nf6 {[%clk 0:02:40.4]} 2. Nc3 {[%clk 0:02:39.8]}
2... d5 {[%clk 0:02:40.4]} 3. Bg5 {[%clk 0:02:36.7]} 3... Bf5 {[%clk 0:02:40.9]}
4. f3 {[%clk 0:02:29.2]} 4... Nbd7 {[%clk 0:02:40.4]} 5. Qd2 {[%clk 0:02:03.3]}
5... h6 {[%clk 0:02:27]} 6. Bh4 {[%clk 0:01:58.6]} 6... g5 {[%clk 0:02:25.7]} 7.
Bf2 {[%clk 0:01:56.9]} 7... e6 {[%clk 0:02:15.3]} 8. g4 {[%clk 0:01:50.6]} 8...
Bg6 {[%clk 0:01:52.8]} 9. h4 {[%clk 0:01:46.6]} 9... Bg7 {[%clk 0:01:40.4]} 10.
hxg5 {[%clk 0:01:40.3]} 10... hxg5 {[%clk 0:01:42.3]} 11. Rxh8+ {[%clk
0:01:40.9]} 11... Bxh8 {[%clk 0:01:44.2]} 12. Qxg5 {[%clk 0:01:41.6]} 12... Bxc2
{[%clk 0:01:33.5]} 13. Qh6 {[%clk 0:01:32.5]} 13... Nh7 {[%clk 0:00:31.8]} 14.
e4 {[%clk 0:01:28.9]} 14... Ndf8 {[%clk 0:00:32.7]} 15. Rc1 {[%clk 0:01:06.3]}
15... dxe4 {[%clk 0:00:28.5]} 16. Rxc2 {[%clk 0:01:01.6]} 16... Bxd4 {[%clk
0:00:29.6]} 17. Bxd4 {[%clk 0:00:31.1]} 17... Qxd4 {[%clk 0:00:31.5]} 18. Nge2
{[%clk 0:00:31.3]} 18... Qb4 {[%clk 0:00:25.1]} 19. fxe4 {[%clk 0:00:32.2]}
19... O-O-O {[%clk 0:00:21.8]} 20. Qf4 {[%clk 0:00:31.4]} 20... Rd7 {[%clk
0:00:14.5]} 21. Kf2 {[%clk 0:00:32]} 21... Ng6 {[%clk 0:00:15.2]} 22. Qh6 {[%clk
0:00:28.3]} 22... Qc5+ {[%clk 0:00:11.4]} 23. Qe3 {[%clk 0:00:26.7]} 23... Qa5
{[%clk 0:00:12.5]} 24. Nd4 {[%clk 0:00:24]} 24... a6 {[%clk 0:00:10.1]} 25. Nb3
{[%clk 0:00:21]} 25... Qe5 {[%clk 0:00:10.6]} 26. Qa7 {[%clk 0:00:18.2]} 26...
c6 {[%clk 0:00:07.5]} 27. Qc5 {[%clk 0:00:11.5]} 27... Qf4+ {[%clk 0:00:07.2]}
28. Kg1 {[%clk 0:00:11.3]} 28... Ng5 {[%clk 0:00:07.7]} 29. Bg2 {[%clk
0:00:08.6]} 29... Qxg4 {[%clk 0:00:06.7]} 30. Qf2 {[%clk 0:00:07]} 30... Nh3+
{[%clk 0:00:07.4]} 31. Kf1 {[%clk 0:00:07.4]} 31... Nxf2 {[%clk 0:00:09.3]} 32.
Rxf2 {[%clk 0:00:08.8]} 32... Rd1+ {[%clk 0:00:09.4]} 33. Nxd1 {[%clk
0:00:07.9]} 33... Qxd1# {[%clk 0:00:11.3]} 0-1

[Event "*** Titled Tuesday 3|2 Blitz"]
[Site "Chess.com"]
[Date "2016.09.06"]
[Round "7"]
[White "tigra"]
[Black "Lapitch"]
[Result "0-1"]
[WhiteElo "2444"]
[BlackElo "2581"]
[TimeControl "180+2"]
[EndTime "18:23:21 PDT"]
[Termination "Lapitch won by resignation"]

1. e4 {[%clk 0:03:01.9]} 1... e5 {[%clk 0:02:56.3]} 2. f4 {[%clk 0:03:02.5]}
2... d5 {[%clk 0:02:55.4]} 3. exd5 {[%clk 0:03:02.1]} 3... exf4 {[%clk
0:02:54.8]} 4. Bb5+ {[%clk 0:03:03.6]} 4... c6 {[%clk 0:02:55.1]} 5. dxc6 {[%clk
0:03:04.7]} 5... Nxc6 {[%clk 0:02:52.2]} 6. Qf3 {[%clk 0:03:05]} 6... Nf6 {[%clk
0:02:43.7]} 7. Ne2 {[%clk 0:03:02.9]} 7... g5 {[%clk 0:02:24.9]} 8. b3 {[%clk
0:02:52.8]} 8... Bg7 {[%clk 0:02:23.5]} 9. Ba3 {[%clk 0:02:49]} 9... Qd5 {[%clk
0:02:14.4]} 10. Nbc3 {[%clk 0:02:47.4]} 10... Qxf3 {[%clk 0:02:10.3]} 11. gxf3
{[%clk 0:02:49.3]} 11... Bh3 {[%clk 0:01:54.6]} 12. Rg1 {[%clk 0:02:49]} 12...
Bh6 {[%clk 0:01:55.4]} 13. Nd4 {[%clk 0:02:37.8]} 13... O-O-O {[%clk 0:01:44.8]}
14. Nxc6 {[%clk 0:02:36.6]} 14... bxc6 {[%clk 0:01:44.1]} 15. Bxc6 {[%clk
0:02:37.3]} 15... Kc7 {[%clk 0:01:38.1]} 16. Ba4 {[%clk 0:02:36.6]} 16... g4
{[%clk 0:01:35.4]} 17. fxg4 {[%clk 0:02:17.7]} 17... f3 {[%clk 0:01:31]} 18.
O-O-O {[%clk 0:02:08.7]} 18... f2 {[%clk 0:01:28.3]} 19. g5 {[%clk 0:02:04.1]}
19... fxg1=Q {[%clk 0:01:24.8]} 20. Rxg1 {[%clk 0:02:05.2]} 20... Rhg8 {[%clk
0:00:48.8]} 21. Rg3 {[%clk 0:01:56.6]} 21... Rxg5 {[%clk 0:00:40.3]} 22. Rxh3
{[%clk 0:01:56.4]} 22... Rg1+ {[%clk 0:00:41.5]} 23. Kb2 {[%clk 0:01:56.7]}
23... Bxd2 {[%clk 0:00:42.8]} 24. Nb5+ {[%clk 0:01:54.5]} 24... Kb6 {[%clk
0:00:41.5]} 25. b4 {[%clk 0:01:43.3]} 25... a6 {[%clk 0:00:32.2]} 26. Nc3 {[%clk
0:01:37.8]} 26... Ng4 {[%clk 0:00:27.6]} 27. Rxh7 {[%clk 0:01:22.2]} 27... Ne3
{[%clk 0:00:23.6]} 28. Kb3 {[%clk 0:01:10.9]} 28... Rc8 {[%clk 0:00:24.4]} 29.
Rh6+ {[%clk 0:00:16.1]} 29... Ka7 {[%clk 0:00:22.5]} 30. Ne4 {[%clk 0:00:12.2]}
30... Rb1+ {[%clk 0:00:22.4]} 31. Bb2 {[%clk 0:00:12.8]} 31... Bc1 {[%clk
0:00:23.8]} 32. Nc5 {[%clk 0:00:09.1]} 32... Rxb2+ {[%clk 0:00:24.2]} 33. Kc3
{[%clk 0:00:10.4]} 33... Nd1+ {[%clk 0:00:22]} 34. Kd3 {[%clk 0:00:10.9]} 34...
Bxh6 {[%clk 0:00:23.9]} 0-1

[Event "*** Titled Tuesday 3|2 Blitz"]
[Site "Chess.com"]
[Date "2016.09.06"]
[Round "7"]
[White "Kawhi_Leonard2"]
[Black "Ksenia_Legenko"]
[Result "1-0"]
[WhiteElo "2058"]
[BlackElo "2037"]
[TimeControl "180+2"]
[EndTime "18:23:48 PDT"]
[Termination "Kawhi_Leonard2 won by resignation"]

1. e4 {[%clk 0:03:01.9]} 1... c6 {[%clk 0:03:00.7]} 2. d4 {[%clk 0:03:01.4]}
2... d5 {[%clk 0:03:01.5]} 3. Nd2 {[%clk 0:03:02.9]} 3... dxe4 {[%clk
0:03:02.2]} 4. Nxe4 {[%clk 0:03:03.9]} 4... Bf5 {[%clk 0:03:03.8]} 5. Ng3 {[%clk
0:03:04.8]} 5... Bg6 {[%clk 0:03:05.4]} 6. h4 {[%clk 0:03:06.5]} 6... h6 {[%clk
0:03:06]} 7. Nf3 {[%clk 0:03:06.8]} 7... Nd7 {[%clk 0:03:06.4]} 8. h5 {[%clk
0:03:07.2]} 8... Bh7 {[%clk 0:03:07.8]} 9. Bd3 {[%clk 0:03:08.4]} 9... Bxd3
{[%clk 0:03:09.3]} 10. Qxd3 {[%clk 0:03:09.1]} 10... e6 {[%clk 0:03:10.9]} 11.
Bd2 {[%clk 0:03:07.6]} 11... Qc7 {[%clk 0:03:11.8]} 12. O-O-O {[%clk 0:03:07.7]}
12... Ngf6 {[%clk 0:03:12.5]} 13. Kb1 {[%clk 0:03:06.8]} 13... O-O-O {[%clk
0:03:13.5]} 14. Ne4 {[%clk 0:03:07.2]} 14... Nxe4 {[%clk 0:03:13.9]} 15. Qxe4
{[%clk 0:03:08.1]} 15... Nf6 {[%clk 0:03:15.5]} 16. Qe2 {[%clk 0:03:07.8]} 16...
Bd6 {[%clk 0:03:16.2]} 17. g3 {[%clk 0:03:07.4]} 17... Rd7 {[%clk 0:03:16.8]}
18. c4 {[%clk 0:03:07.8]} 18... c5 {[%clk 0:03:13.9]} 19. Bc3 {[%clk 0:03:08]}
19... cxd4 {[%clk 0:03:14.3]} 20. Nxd4 {[%clk 0:03:08]} 20... a6 {[%clk
0:03:15.6]} 21. Nb3 {[%clk 0:03:08.4]} 21... Qc6 {[%clk 0:03:12]} 22. Rh4 {[%clk
0:02:15.4]} 22... Rhd8 {[%clk 0:03:06]} 23. Rhd4 {[%clk 0:02:15.6]} 23... Bc7
{[%clk 0:02:59.8]} 24. Rxd7 {[%clk 0:02:15.3]} 24... Rxd7 {[%clk 0:02:59.8]} 25.
Rxd7 {[%clk 0:02:13.7]} 25... Qxd7 {[%clk 0:03:00.4]} 26. g4 {[%clk 0:02:13.4]}
26... Qc6 {[%clk 0:02:56.1]} 27. f3 {[%clk 0:02:14.2]} 27... Qd6 {[%clk
0:02:49.8]} 28. Kc2 {[%clk 0:02:09.1]} 28... Qf4 {[%clk 0:02:36.3]} 29. Nd2
{[%clk 0:02:03.8]} 29... e5 {[%clk 0:02:09.3]} 30. b4 {[%clk 0:01:39.2]} 30...
Nd7 {[%clk 0:01:57.1]} 31. Qe4 {[%clk 0:01:28.3]} 31... Qxe4+ {[%clk 0:01:48.1]}
32. Nxe4 {[%clk 0:01:29.2]} 32... f6 {[%clk 0:01:45.3]} 33. Ng3 {[%clk 0:01:29]}
33... Nf8 {[%clk 0:01:41]} 34. Kd3 {[%clk 0:01:25.3]} 34... Kd7 {[%clk
0:01:41.4]} 35. a4 {[%clk 0:01:20.9]} 35... Ne6 {[%clk 0:01:40.2]} 36. Nf5
{[%clk 0:01:18.1]} 36... Ke8 {[%clk 0:01:36.8]} 37. Bd2 {[%clk 0:01:08]} 37...
Kf7 {[%clk 0:01:33.8]} 38. Ke4 {[%clk 0:01:07.1]} 38... Nd8 {[%clk 0:01:24.8]}
39. Kd5 {[%clk 0:01:02.4]} 39... Ne6 {[%clk 0:01:14.3]} 40. b5 {[%clk 0:00:58]}
40... axb5 {[%clk 0:01:11.4]} 41. cxb5 {[%clk 0:00:56.5]} 41... Nd8 {[%clk
0:00:53.6]} 42. a5 {[%clk 0:00:55.7]} 42... Bb8 {[%clk 0:00:50.5]} 43. Be3
{[%clk 0:00:53.8]} 43... Bc7 {[%clk 0:00:44.5]} 44. a6 {[%clk 0:00:53.6]} 44...
bxa6 {[%clk 0:00:41.7]} 45. bxa6 {[%clk 0:00:54.3]} 45... Ne6 {[%clk 0:00:38.9]}
46. a7 {[%clk 0:00:50.3]} 46... Ba5 {[%clk 0:00:39.6]} 47. Nd6+ {[%clk
0:00:43.6]} 47... Ke7 {[%clk 0:00:37.1]} 48. Nb5 {[%clk 0:00:44.6]} 1-0

[Event "*** Titled Tuesday 3|2 Blitz"]
[Site "Chess.com"]
[Date "2016.09.06"]
[Round "7"]
[White "beastfromweast"]
[Black "fpawn"]
[Result "1-0"]
[WhiteElo "2283"]
[BlackElo "2160"]
[TimeControl "180+2"]
[EndTime "18:24:28 PDT"]
[Termination "beastfromweast won by resignation"]

1. d4 {[%clk 0:03:02]} 1... f5 {[%clk 0:02:35.7]} 2. e4 {[%clk 0:02:54.9]} 2...
fxe4 {[%clk 0:02:29.3]} 3. Nc3 {[%clk 0:02:56.1]} 3... Nf6 {[%clk 0:02:30.2]} 4.
Bg5 {[%clk 0:02:57.2]} 4... Nc6 {[%clk 0:02:31.3]} 5. d5 {[%clk 0:02:57.9]} 5...
Ne5 {[%clk 0:02:32.4]} 6. Qd4 {[%clk 0:02:59.5]} 6... Nf7 {[%clk 0:02:32.5]} 7.
Bxf6 {[%clk 0:03:00.5]} 7... exf6 {[%clk 0:02:32.6]} 8. Nxe4 {[%clk 0:03:02.4]}
8... f5 {[%clk 0:02:33.6]} 9. Nc3 {[%clk 0:03:03.7]} 9... g6 {[%clk 0:02:34.5]}
10. Bc4 {[%clk 0:03:04.2]} 10... d6 {[%clk 0:02:35.2]} 11. Bb5+ {[%clk
0:03:04.2]} 11... Bd7 {[%clk 0:02:35]} 12. Bxd7+ {[%clk 0:03:05.8]} 12... Qxd7
{[%clk 0:02:35.9]} 13. Kf1 {[%clk 0:03:07.7]} 13... Be7 {[%clk 0:02:19.7]} 14.
Qg7 {[%clk 0:03:08.2]} 14... Rf8 {[%clk 0:01:50.7]} 15. Qxh7 {[%clk 0:03:08]}
15... O-O-O {[%clk 0:01:42.3]} 16. Qxg6 {[%clk 0:03:07.2]} 16... Ng5 {[%clk
0:01:38.5]} 17. h4 {[%clk 0:03:04.4]} 17... Rg8 {[%clk 0:01:38.4]} 18. Qh5
{[%clk 0:02:59.7]} 18... Rh8 {[%clk 0:01:37.6]} 19. Qe2 {[%clk 0:02:58.5]} 19...
Rde8 {[%clk 0:01:31.5]} 20. Qb5 {[%clk 0:02:51.1]} 20... a6 {[%clk 0:00:56.8]}
21. Qxd7+ {[%clk 0:02:47.7]} 21... Kxd7 {[%clk 0:00:58.7]} 22. Nge2 {[%clk
0:02:47.1]} 22... Bf6 {[%clk 0:00:50.9]} 23. Kg1 {[%clk 0:02:40.2]} 23... Ne4
{[%clk 0:00:47.7]} 24. g3 {[%clk 0:02:28.7]} 24... Nxc3 {[%clk 0:00:46.3]} 25.
Nxc3 {[%clk 0:02:28.8]} 25... Bxc3 {[%clk 0:00:47.6]} 26. bxc3 {[%clk
0:02:29.9]} 26... Re2 {[%clk 0:00:49]} 27. Rc1 {[%clk 0:02:26.3]} 27... Rd2
{[%clk 0:00:43.9]} 28. c4 {[%clk 0:02:21.8]} 28... Rd4 {[%clk 0:00:44.4]} 29.
Kg2 {[%clk 0:02:22.9]} 29... Rxc4 {[%clk 0:00:45.4]} 30. Rhd1 {[%clk 0:02:20.8]}
30... f4 {[%clk 0:00:39.9]} 31. c3 {[%clk 0:02:19.2]} 31... Rf8 {[%clk
0:00:31.2]} 32. Rd3 {[%clk 0:02:11.2]} 32... Ra4 {[%clk 0:00:28.1]} 33. Rc2
{[%clk 0:02:00.6]} 33... b5 {[%clk 0:00:23.5]} 34. Rf3 {[%clk 0:01:59.6]} 34...
Rc4 {[%clk 0:00:18.6]} 35. Rxf4 {[%clk 0:01:49.7]} 35... Rcxf4 {[%clk
0:00:18.3]} 36. gxf4 {[%clk 0:01:51.6]} 36... Rxf4 {[%clk 0:00:19.3]} 37. Kg3
{[%clk 0:01:53.2]} 37... Rc4 {[%clk 0:00:19.8]} 38. h5 {[%clk 0:01:43.4]} 38...
Ke7 {[%clk 0:00:20.8]} 39. f4 {[%clk 0:01:41.1]} 39... Kf7 {[%clk 0:00:21.2]}
40. Kg4 {[%clk 0:01:41.4]} 40... Rc5 {[%clk 0:00:21.1]} 41. Kg5 {[%clk
0:01:38.5]} 41... Rxd5+ {[%clk 0:00:21]} 42. f5 {[%clk 0:01:40.1]} 42... Rd1
{[%clk 0:00:21.2]} 43. Rg2 {[%clk 0:01:39.8]} 43... Rh1 {[%clk 0:00:20.9]} 44.
h6 {[%clk 0:01:40]} 44... a5 {[%clk 0:00:21]} 45. f6 {[%clk 0:01:28.7]} 45... d5
{[%clk 0:00:22.1]} 46. Rg4 {[%clk 0:01:27.1]} 46... c5 {[%clk 0:00:22.3]} 47.
Rg3 {[%clk 0:01:25.6]} 47... a4 {[%clk 0:00:22.8]} 48. Rg4 {[%clk 0:01:13.2]}
48... a3 {[%clk 0:00:22.4]} 49. Rh4 {[%clk 0:01:05.5]} 49... Rg1+ {[%clk
0:00:23.3]} 50. Kf5 {[%clk 0:01:06.9]} 50... Rf1+ {[%clk 0:00:23.6]} 51. Ke5
{[%clk 0:01:08.4]} 51... Kg8 {[%clk 0:00:08.2]} 52. Kxd5 {[%clk 0:01:04]} 52...
Rxf6 {[%clk 0:00:08]} 53. Kxc5 {[%clk 0:01:05.1]} 53... Rf5+ {[%clk 0:00:08.7]}
54. Kb4 {[%clk 0:01:05.2]} 54... Kh7 {[%clk 0:00:09.9]} 55. Kxa3 {[%clk
0:01:05.9]} 55... Rf2 {[%clk 0:00:09.4]} 56. Kb3 {[%clk 0:01:06.2]} 56... Rg2
{[%clk 0:00:09.6]} 57. Rh3 {[%clk 0:01:03.6]} 57... Rg4 {[%clk 0:00:08.2]} 58.
Rh5 {[%clk 0:01:04]} 58... Rg2 {[%clk 0:00:08]} 59. Rxb5 {[%clk 0:01:04.4]}
59... Kxh6 {[%clk 0:00:09.6]} 60. a4 {[%clk 0:01:06.2]} 60... Kg7 {[%clk
0:00:10.7]} 61. Rf5 {[%clk 0:01:06.9]} 61... Kg6 {[%clk 0:00:11.6]} 62. Rf1
{[%clk 0:01:07.3]} 1-0

[Event "*** Titled Tuesday 3|2 Blitz"]
[Site "Chess.com"]
[Date "2016.09.06"]
[Round "7"]
[White "Rsnr"]
[Black "andretta"]
[Result "1-0"]
[WhiteElo "2517"]
[BlackElo "2277"]
[TimeControl "180+2"]
[EndTime "18:24:30 PDT"]
[Termination "Rsnr won on time"]

1. d4 {[%clk 0:03:01.9]} 1... e6 {[%clk 0:03:00.8]} 2. c4 {[%clk 0:03:03.5]}
2... d5 {[%clk 0:03:01.9]} 3. Nc3 {[%clk 0:03:04.6]} 3... Nf6 {[%clk 0:03:03.4]}
4. cxd5 {[%clk 0:03:06]} 4... exd5 {[%clk 0:03:04.9]} 5. Bg5 {[%clk 0:03:07.7]}
5... c6 {[%clk 0:03:06.3]} 6. e3 {[%clk 0:03:09.4]} 6... Nbd7 {[%clk 0:03:06.9]}
7. Qc2 {[%clk 0:03:08.7]} 7... Be7 {[%clk 0:03:08.2]} 8. Bd3 {[%clk 0:03:09.9]}
8... O-O {[%clk 0:03:09.3]} 9. Nge2 {[%clk 0:03:11]} 9... Re8 {[%clk 0:03:10.5]}
10. O-O {[%clk 0:03:12.5]} 10... Nf8 {[%clk 0:03:10.5]} 11. f3 {[%clk
0:03:11.1]} 11... Nh5 {[%clk 0:03:11.2]} 12. Bxe7 {[%clk 0:03:11.6]} 12... Rxe7
{[%clk 0:03:11.2]} 13. e4 {[%clk 0:03:13.5]} 13... dxe4 {[%clk 0:03:02.9]} 14.
fxe4 {[%clk 0:03:14.3]} 14... Nf6 {[%clk 0:02:50.8]} 15. Rad1 {[%clk 0:03:01.5]}
15... Ne6 {[%clk 0:02:33.7]} 16. e5 {[%clk 0:02:53.8]} 16... Nxd4 {[%clk
0:02:29.6]} 17. Bxh7+ {[%clk 0:02:49]} 17... Nxh7 {[%clk 0:02:30.8]} 18. Rxd4
{[%clk 0:02:40.4]} 18... Qb6 {[%clk 0:02:29.2]} 19. Kh1 {[%clk 0:02:15.1]} 19...
Rxe5 {[%clk 0:02:04.8]} 20. Rh4 {[%clk 0:02:06.2]} 20... Nf8 {[%clk 0:02:03]}
21. Qd2 {[%clk 0:01:57]} 21... Qe3 {[%clk 0:02:00]} 22. Qd8 {[%clk 0:01:51.8]}
22... Re8 {[%clk 0:01:58.2]} 23. Qc7 {[%clk 0:01:47.4]} 23... Qe7 {[%clk
0:01:54.8]} 24. Qg3 {[%clk 0:01:42.8]} 24... Qe5 {[%clk 0:01:37.5]} 25. Qf3
{[%clk 0:01:36.8]} 25... Be6 {[%clk 0:01:33.6]} 26. Nd4 {[%clk 0:01:28.1]} 26...
Rad8 {[%clk 0:01:28.1]} 27. Re4 {[%clk 0:01:27.3]} 27... Qc7 {[%clk 0:01:21.4]}
28. Nxe6 {[%clk 0:01:16.7]} 28... Rxe6 {[%clk 0:01:23.3]} 29. Rf4 {[%clk
0:01:14.5]} 29... Rd7 {[%clk 0:01:08.2]} 30. h4 {[%clk 0:00:45.1]} 30... Ng6
{[%clk 0:01:04.4]} 31. Ra4 {[%clk 0:00:43.4]} 31... Ne5 {[%clk 0:01:00.6]} 32.
Qg3 {[%clk 0:00:39.2]} 32... Rg6 {[%clk 0:00:56.3]} 33. Qh3 {[%clk 0:00:30.6]}
33... Rd3 {[%clk 0:00:53.2]} 34. Qh2 {[%clk 0:00:23.7]} 34... b5 {[%clk
0:00:21]} 35. Re4 {[%clk 0:00:19]} 35... f6 {[%clk 0:00:20]} 36. h5 {[%clk
0:00:17.3]} 36... Rgg3 {[%clk 0:00:19.9]} 37. h6 {[%clk 0:00:13.3]} 37... Rge3
{[%clk 0:00:18.5]} 38. h7+ {[%clk 0:00:11.2]} 38... Kh8 {[%clk 0:00:18.1]} 39.
Qh5 {[%clk 0:00:07.8]} 39... Qd7 {[%clk 0:00:15.5]} 40. Rh4 {[%clk 0:00:06.9]}
40... Qf7 {[%clk 0:00:13.2]} 41. Qf5 {[%clk 0:00:04.5]} 41... Rd8 {[%clk
0:00:11.3]} 42. Ne4 {[%clk 0:00:05.4]} 42... Red3 {[%clk 0:00:04.5]} 43. Qxe5
{[%clk 0:00:05.5]} 43... fxe5 {[%clk 0:00:05]} 44. Rxf7 {[%clk 0:00:06.3]} 44...
Rd1+ {[%clk 0:00:06.9]} 45. Kh2 {[%clk 0:00:07.6]} 1-0

[Event "*** Titled Tuesday 3|2 Blitz"]
[Site "Chess.com"]
[Date "2016.09.06"]
[Round "7"]
[White "Gabrielian_Artur"]
[Black "E-Shaposhnikov"]
[Result "0-1"]
[WhiteElo "2531"]
[BlackElo "2681"]
[TimeControl "180+2"]
[EndTime "18:24:42 PDT"]
[Termination "E-Shaposhnikov won by checkmate"]

1. e4 {[%clk 0:02:53.9]} 1... c5 {[%clk 0:03:00.9]} 2. Nf3 {[%clk 0:02:55.2]}
2... e6 {[%clk 0:03:01.5]} 3. d4 {[%clk 0:02:56.5]} 3... cxd4 {[%clk 0:03:02.4]}
4. Nxd4 {[%clk 0:02:57.8]} 4... a6 {[%clk 0:03:04]} 5. c4 {[%clk 0:02:57.8]}
5... Nf6 {[%clk 0:03:03.6]} 6. Nc3 {[%clk 0:02:58.9]} 6... Qc7 {[%clk
0:03:03.7]} 7. a3 {[%clk 0:02:59.1]} 7... b6 {[%clk 0:03:03.9]} 8. g3 {[%clk
0:02:57.2]} 8... Bb7 {[%clk 0:02:57.1]} 9. Qe2 {[%clk 0:02:57.8]} 9... Bc5
{[%clk 0:02:54]} 10. Nb3 {[%clk 0:02:55.1]} 10... Be7 {[%clk 0:02:54.7]} 11. Bg2
{[%clk 0:02:55.3]} 11... d6 {[%clk 0:02:55.3]} 12. O-O {[%clk 0:02:54.9]} 12...
Nbd7 {[%clk 0:02:55.7]} 13. Nd2 {[%clk 0:02:47.6]} 13... O-O {[%clk 0:02:52.6]}
14. b3 {[%clk 0:02:40.9]} 14... b5 {[%clk 0:02:53.1]} 15. Bb2 {[%clk 0:02:41.7]}
15... bxc4 {[%clk 0:02:51.8]} 16. Nxc4 {[%clk 0:02:42.1]} 16... Rfc8 {[%clk
0:02:46.4]} 17. Rac1 {[%clk 0:02:39.5]} 17... Nc5 {[%clk 0:02:29.5]} 18. Nd2
{[%clk 0:02:39.7]} 18... a5 {[%clk 0:02:27.6]} 19. b4 {[%clk 0:02:29.6]} 19...
axb4 {[%clk 0:02:22.4]} 20. axb4 {[%clk 0:02:30.5]} 20... Ba6 {[%clk 0:02:24.1]}
21. b5 {[%clk 0:02:28.8]} 21... Bb7 {[%clk 0:02:25.2]} 22. Rfe1 {[%clk
0:02:20.2]} 22... Nfd7 {[%clk 0:02:22.1]} 23. Rc2 {[%clk 0:02:01.5]} 23... Ne5
{[%clk 0:02:15.6]} 24. Rb1 {[%clk 0:01:55.8]} 24... Bf6 {[%clk 0:02:00.8]} 25.
Nd1 {[%clk 0:01:38.2]} 25... Qd8 {[%clk 0:02:01.6]} 26. Ne3 {[%clk 0:01:36.1]}
26... Na4 {[%clk 0:01:51.8]} 27. Rxc8 {[%clk 0:01:32.3]} 27... Rxc8 {[%clk
0:01:51.3]} 28. Ba1 {[%clk 0:01:31.7]} 28... Nc3 {[%clk 0:01:51.6]} 29. Bxc3
{[%clk 0:01:32.4]} 29... Rxc3 {[%clk 0:01:53.5]} 30. b6 {[%clk 0:01:26.5]} 30...
Qc8 {[%clk 0:01:54.5]} 31. Nb3 {[%clk 0:01:17.6]} 31... Nd7 {[%clk 0:01:37]} 32.
Na5 {[%clk 0:01:17.3]} 32... Ba6 {[%clk 0:01:35.9]} 33. Qa2 {[%clk 0:01:14.8]}
33... Rc1+ {[%clk 0:01:32.5]} 34. Rxc1 {[%clk 0:01:15.1]} 34... Qxc1+ {[%clk
0:01:33.3]} 35. Bf1 {[%clk 0:01:16.6]} 35... Bxf1 {[%clk 0:01:26.5]} 36. Nxf1
{[%clk 0:01:17.4]} 36... Nxb6 {[%clk 0:01:28.1]} 37. Qb3 {[%clk 0:00:56.2]}
37... Qc7 {[%clk 0:01:28.1]} 38. Qb5 {[%clk 0:00:56.6]} 38... g6 {[%clk
0:01:28.4]} 39. Nc6 {[%clk 0:00:57.5]} 39... Kg7 {[%clk 0:01:28.1]} 40. Ne3
{[%clk 0:00:58.3]} 40... Nd7 {[%clk 0:01:23.1]} 41. Ng4 {[%clk 0:00:54.8]} 41...
h5 {[%clk 0:01:18.4]} 42. Nxf6 {[%clk 0:00:55.6]} 42... Nxf6 {[%clk 0:01:20.3]}
43. f3 {[%clk 0:00:54.1]} 43... Qd7 {[%clk 0:01:17.1]} 44. Qb6 {[%clk
0:00:52.1]} 44... Qc8 {[%clk 0:01:11.6]} 45. Kf2 {[%clk 0:00:51.1]} 45... Qa8
{[%clk 0:01:10.1]} 46. Nb4 {[%clk 0:00:42.5]} 46... Qa1 {[%clk 0:01:01.5]} 47.
Qxd6 {[%clk 0:00:35.2]} 47... Qb2+ {[%clk 0:01:01.8]} 48. Kg1 {[%clk 0:00:35.6]}
48... Qe2 {[%clk 0:01:00.9]} 49. e5 {[%clk 0:00:28.3]} 49... Ng8 {[%clk
0:00:52.6]} 50. f4 {[%clk 0:00:27.5]} 50... Nh6 {[%clk 0:00:51]} 51. Nc6 {[%clk
0:00:09.2]} 51... Ng4 {[%clk 0:00:49.9]} 52. Qd4 {[%clk 0:00:10.6]} 52... Ne3
{[%clk 0:00:44.1]} 53. Qe4 {[%clk 0:00:11.1]} 53... Qe1# {[%clk 0:00:44.2]} 0-1